Cogmind - Beta 15 @@@ ROGUE MODE // 2025.09.07 @ 17:51:57 Player: CrashCricket Result: Destroyed by H-61 Shepherd with Heavy Assault Cannon Performance ------------- Evolutions (4) 2000 Regions Visited (6) 1200 Robots Destroyed (27) 135 Value Destroyed (379) 379 Prototype IDs (0) 0 Alien Tech Used (0) 0 Bonus (475) 475 TOTAL SCORE: 4189 Bonus ------- Entered DSFs 500 Friendly Fire -25 Cogmind --------- Core Integrity 0/850 Matter 63/300 Energy 100/100 System Corruption 0% Temperature Cool (0) Movement Core (1350) Ox26 Location -6/DSF Parts ------- > --- POWER (2) -------- (None) > --- PROPULSION (5) --- (None) > --- UTILITY (4) ------ Huge Storage Unit > --- WEAPON (4) ------- (None) > --- INVENTORY (25) --- Improved VSS Leg Mining Laser Mining Laser Peak State ------------ > --- POWER ------------ Nuclear Core > --- PROPULSION ------- Improved VSS Leg Improved VSS Leg Improved VSS Leg Armored Wheel Armored Wheel > --- UTILITY ---------- Huge Storage Unit Scrap Shield > --- WEAPON ----------- Light Cannon Light Cannon Missile Launcher Missile Launcher > --- INVENTORY -------- Improved VSS Leg Shock Rifle Light Cannon Rocket Launcher Mining Laser Mining Laser Mining Laser [Rating: 36] Favorites ----------- Power Light Ion Engine Engine Light Ion Engine Power Core Nuclear Core Propulsion Light Treads Treads Light Treads Leg Improved VSS Leg Wheel Compact Wheel Utility Small Storage Unit Device Improved Terrain Scanner Storage Small Storage Unit Processor Improved Signal Interpreter Protection Scrap Shield Weapon Light Cannon Energy Gun Small Laser Ballistic Gun Light Assault Rifle Ballistic Cannon Light Cannon Launcher Missile Launcher Special Weapon Mining Laser Build | -11 -10 -10 -10 -8 -6 -6 ------- Run | Yrd Mat Min Sub Rec Fac DSF Slots Evolved 8 | . . . . . 8 . Power 1 | . . . . . 1 . Propulsion 3 | . . . . . 3 . Utility 2 | . . . . . 2 . Weapon 2 | . . . . . 2 . Parts Attached 36 | 7 8 . 1 8 6 6 Power 4 | 1 1 . 1 1 . . Engine 3 | 1 1 . 1 . . . Core 1 | . . . . 1 . . Reactor . | . . . . . . . Propulsion 11 | 2 3 . . 2 . 4 Treads 2 | 2 . . . . . . Leg 4 | . . . . . . 4 Wheel 5 | . 3 . . 2 . . Hover . | . . . . . . . Flight . | . . . . . . . Utility 6 | 2 . . . 3 1 . Device 1 | 1 . . . . . . Storage 3 | 1 . . . 2 . . Processor 1 | . . . . 1 . . Hackware . | . . . . . . . Protection 1 | . . . . . 1 . Artifact . | . . . . . . . Weapon 15 | 2 4 . . 2 5 2 Energy Gun 3 | 2 . . . . 1 . Energy Cannon . | . . . . . . . Ballistic Gun 2 | . 2 . . . . . Ballistic Cannon 5 | . 2 . . . 2 1 Launcher 3 | . . . . 2 1 . Special Weapon 2 | . . . . . 1 1 Impact Weapon . | . . . . . . . Slashing Weapon . | . . . . . . . Piercing Weapon . | . . . . . . . Special Melee Weapon . | . . . . . . . Unidentified Prototypes . | . . . . . . . Parts Lost 16 | . 4 . . . . 12 Power 2 | . 1 . . . . 1 Propulsion 3 | . 1 . . . . 2 Utility 1 | . . . . . . 1 Weapon 10 | . 2 . . . . 8 Highest Loss Streak 12 | . 3 . . . . 12 To Critical Strikes . | . . . . . . . Average Backups 6 | 1 3 8 7 8 6 5 Power . | . . . . . . . Propulsion . | 1 2 1 . . . . Utility . | . . . . 1 . . Weapon 4 | . 1 7 6 7 6 4 Tool/Special . | . . . . . . . Unused Backups 2 | . . . 1 . . 1 Power . | . . . . . . . Propulsion 1 | . . . 1 . . . Utility . | . . . . . . . Weapon 1 | . . . . . . 1 Tool/Special . | . . . . . . . Average Slot Usage (%) 91 | . 94 100 100 97 61 46 Engine 7 | . 12 14 14 2 . . Core 5 | . . . . 11 6 4 Treads 16 | . 5 28 28 22 . . Wheel 7 | . 21 . . 4 13 5 Device 8 | . 14 14 14 3 . . Storage 13 | . 14 14 14 14 6 6 Processor 4 | . . . . 10 6 . Energy Gun 3 | . 15 . . . . . Ballistic Gun 1 | . 7 . . . . . Ballistic Cannon 13 | . 2 28 28 13 6 8 Launcher 6 | . . . . 13 14 9 Peak Build Rating 36 | 9 9 9 11 17 25 36 Average Rating 11 | 6 8 9 10 13 23 17 On Entrance 11 | . 9 9 9 11 17 23 Naked Turns . | . . . . . . . Heaviest Build 124 | 11 15 15 17 97 123 124 Greatest Support 60 | 40 40 40 40 40 24 60 Greatest Overweight (x) 32 | . 1 . . 32 5 26 Average Overweight (x) . | . . . . 1 5 5 Largest Inventory Capacity 25 | 8 8 8 8 25 25 25 Average Capacity 12 | 7 8 8 8 15 25 25 Most Carried 12 | 3 8 8 8 12 8 10 Average Carried 6 | 1 3 8 7 9 6 5 Final Capacity 25 | 8 8 8 8 25 25 25 Final Carried 10 | 3 8 8 8 10 6 3 Class Distribution -------------------- 87% | Mutant 5% | Scavenger-Mutant 5% | Gunner Dominant Class ---------------- Mutant | -10/Materials Mutant | -10/Mines Mutant | -10/Subcaves Mutant | -8/Recycling Mutant | -6/Factory Gunner | -6/DSF Resources | -11 -10 -10 -10 -8 -6 -6 ----------- Run | Yrd Mat Min Sub Rec Fac DSF Matter Collected 677 | 270 82 . 139 161 . 25 Remotely . | . . . . . . . Salvage Created 692 | 183 313 . 35 161 . . Parts 54 | 14 28 . 5 7 . . Haulers Intercepted . | . . . . . . . Recyclers Shooed 5 | 1 3 . . 1 . . Parts Field Recycled . | . . . . . . . Retrieved Matter . | . . . . . . . Parts Self-Destructed 8 | . . . 8 . . . Prevented . | . . . . . . . Kills | -11 -10 -10 -10 -8 -6 -6 ------- Run | Yrd Mat Min Sub Rec Fac DSF Combat Hostiles Destroyed 14 | . 9 . 3 2 . . Guns 9 | . 9 . . . . . Cannons 3 | . . . 3 . . . AOE 2 | . . . . 2 . . Classes Destroyed 8 | 3 2 . . 3 . . Worker 4 | 2 2 . . . . . Builder 1 | . . . . 1 . . Tunneler 5 | 4 . . . 1 . . Recycler 3 | 1 1 . . 1 . . Swarmer 9 | . 6 . 3 . . . Grunt 3 | . 3 . . . . . Sentry 1 | . . . . 1 . . Programmer 1 | . . . . 1 . . Best Kill Streak 5 | 5 4 . 3 3 . . Combat Bots Only 4 | . 4 . 3 2 . . Max Kills in Single Turn 2 | 1 2 . 1 2 . . Gunslinging 1 | . 1 . . . . . Exploded 1 | . . . . 1 . . Melee . | . . . . . . . Uniques/NPCs Destroyed . | . . . . . . . Combat | -11 -10 -10 -10 -8 -6 -6 -------- Run | Yrd Mat Min Sub Rec Fac DSF Hostile Shots Fired 229 | . 70 . 36 4 . 119 Missed 80 | . 19 . 18 2 . 41 Hits 149 | . 51 . 18 2 . 78 Projectile 149 | . 51 . 18 2 . 78 Critical Strikes 5 | . . . . . . 5 Damage Taken 2787 | . 481 . 136 32 . 2138 Core 1045 | . 125 . 12 . . 908 Absorbed by Shields . | . . . . . . . Core Remaining (%) 72 | 100 . . . 45 . . Volleys Fired 89 | 12 52 . 12 9 . 4 Largest 3 | 2 2 . 2 2 . 3 Hottest 110 | 80 80 . 60 69 . 110 Shots Fired 162 | 24 91 . 24 17 . 6 Gun 116 | 24 91 . . . . 1 Cannon 32 | . . . 24 5 . 3 Launcher 14 | . . . . 12 . 2 Special . | . . . . . . . Kinetic 57 | . 25 . 24 5 . 3 Thermal 90 | 24 66 . . . . . Explosive 14 | . . . . 12 . 2 Electromagnetic 1 | . . . . . . 1 Robot Hit Streak 9 | 9 7 . 4 5 . 1 Robot Miss Streak 6 | 2 4 . 6 2 . 2 Penetration Max . | . . . . . . . Secondary Targets 4 | . 4 . . . . . Max Gunslinging Chain 1 | . 1 . . . . . Shots Hit Robots 80 | 14 47 . 11 6 . 2 Core Hits 42 | 8 18 . 5 8 . 3 Critical Kills . | . . . . . . . Critical Parts Destroyed . | . . . . . . . Critical Strikes . | . . . . . . . Melee Attacks . | . . . . . . . Impact . | . . . . . . . Slashing . | . . . . . . . Piercing . | . . . . . . . Sneak Attacks . | . . . . . . . Combat Hostiles . | . . . . . . . Follow-up Attacks . | . . . . . . . Damage Inflicted 1400 | 170 475 . 186 326 . 243 Guns 644 | 170 474 . . . . . Cannons 244 | . . . 186 39 . 19 Explosions 510 | . . . . 286 . 224 Melee . | . . . . . . . Ramming 2 | . 1 . . 1 . . Kinetic 381 | . 137 . 186 39 . 19 Thermal 507 | 170 337 . . . . . Explosive 510 | . . . . 286 . 224 Electromagnetic . | . . . . . . . Impact . | . . . . . . . Slashing . | . . . . . . . Piercing . | . . . . . . . Highest Corruption 1 | . 1 1 1 1 . . Average Corruption 1 | . 1 1 1 1 . . Corruption Purged . | . . . . . . . Corruption Blocked . | . . . . . . . Effects 6 | . 3 . . 3 . . Message Errors 2 | . 2 . . . . . Matter Fused 1 | . . . . 1 . . Heat Flow Errors 1 | . . . . 1 . . Energy Discharges 1 | . . . . 1 . . Data Loss (minor) 1 | . 1 . . . . . Overload Shots . | . . . . . . . Overflow Damage 22 | . . . . 22 . . Projectiles . | . . . . . . . Explosions 22 | . . . . 22 . . Melee . | . . . . . . . Knockbacks 2 | . . . 2 . . . Impact . | . . . . . . . Kinetic 2 | . . . 2 . . . Secondary . | . . . . . . . Self-Inflicted Damage . | . . . . . . . Shots . | . . . . . . . Rammed 2 | . 1 . . 1 . . Targets Rammed 2 | . 1 . . 1 . . Kicked . | . . . . . . . Crushed . | . . . . . . . Highest Temperature 257 | 162 160 . . 257 . . Average Temperature 59 | 69 56 . . 55 . . Received Heat Transfer 348 | . 72 . 42 9 . 225 Siege Activations . | . . . . . . . Martial Activations . | . . . . . . . Shielding Activations . | . . . . . . . Robots Disrupted . | . . . . . . . Combat Hostiles . | . . . . . . . Robots Corrupted . | . . . . . . . Combat Hostiles . | . . . . . . . Parts Fried . | . . . . . . . Impact Corruptions . | . . . . . . . Robots Melted . | . . . . . . . Combat Hostiles . | . . . . . . . Parts Melted 2 | . 2 . . . . . Heat Transferred 1150 | 375 775 . . . . . Parts Sabotaged . | . . . . . . . Parts Stolen . | . . . . . . . Parts Stripped . | . . . . . . . Power Chain Reactions . | . . . . . . . Alert | -11 -10 -10 -10 -8 -6 -6 ------- Run | Yrd Mat Min Sub Rec Fac DSF Maximum Alert Level . | . . . . . . . Low Security (%) 100 | 100 100 100 . 100 100 100 Level 1 . | . . . . . . . Level 2 . | . . . . . . . Level 3 . | . . . . . . . Level 4 . | . . . . . . . Level 5 . | . . . . . . . High Security . | . . . . . . . Max Security . | . . . . . . . Peak Influence 105 | 25 105 25 . 67 11 12 Initial 45 | . . 25 . 45 11 . Average 22 | 5 48 4 . 21 8 . Influence Increases 600 | 35 255 . 135 163 . 12 Destroy 0b10 Robot/C 280 | . 180 . 60 40 . . Destroy 0b10 Robot/NC 70 | 35 15 . . 20 . . Destroy Leader 40 | . 40 . . . . . Successful Hack 5 | . 5 . . . . . Disable Machine 30 | . . . . 30 . . Destroy Structure 85 | . . . . 73 . 12 Lose Combat Pursuer 90 | . 15 . 75 . . . Influence Decreases 600 | 35 190 65 40 231 26 13 Entered New Map 107 | . . 40 . 50 16 1 Time Decay 441 | 35 150 25 40 181 10 . Lost Part 52 | . 40 . . . . 12 Squads Dispatched 4 | . 2 . . . . 2 Investigation 1 | . 1 . . . . . Extermination . | . . . . . . . Reinforcement 3 | . 1 . . . . 2 Assault . | . . . . . . . Garrison . | . . . . . . . Intercept . | . . . . . . . Searches Triggered . | . . . . . . . Construction Impeded . | . . . . . . . Haulers Reinforced . | . . . . . . . Active Scanning Responses . | . . . . . . . Cargo Convoy Interrupts . | . . . . . . . Stealth | -11 -10 -10 -10 -8 -6 -6 --------- Run | Yrd Mat Min Sub Rec Fac DSF Distress Signals . | . . . . . . . Communications Jammed . | . . . . . . . Distress Signals . | . . . . . . . Times Spotted 28 | . 15 . 6 2 . 5 Peak Tracking Total 5 | . 5 . 5 2 . 5 Tactical Retreats 3 | . 1 . 2 . . . Traps | -11 -10 -10 -10 -8 -6 -6 ------- Run | Yrd Mat Min Sub Rec Fac DSF Traps Triggered 2 | . 2 . . . . . Indirectly . | . . . . . . . Trap Hack Attempts . | . . . . . . . Triggered . | . . . . . . . Disarmed . | . . . . . . . Reprogrammed . | . . . . . . . Reused . | . . . . . . . Traps Extracted . | . . . . . . . Installed . | . . . . . . . Triggered . | . . . . . . . Machines | -11 -10 -10 -10 -8 -6 -6 ---------- Run | Yrd Mat Min Sub Rec Fac DSF Machines Disabled 3 | . . . 1 2 . . Max in Single Turn 1 | . . . 1 1 . . Machines Repaired . | . . . . . . . Machines Dismantled . | . . . . . . . Machines Sabotaged . | . . . . . . . Overloaded Fab Kills . | . . . . . . . Hacking | -11 -10 -10 -10 -8 -6 -6 --------- Run | Yrd Mat Min Sub Rec Fac DSF Machines Accessed 3 | . 2 . . . 1 . Terminals 3 | . 2 . . . 1 . Fabricators . | . . . . . . . Repair Stations . | . . . . . . . Recycling Units . | . . . . . . . Scanalyzers . | . . . . . . . Garrison Access . | . . . . . . . Total Hacks 8 | . 6 . . . 2 . Successful 5 | . 4 . . . 1 . Failed 3 | . 2 . . . 1 . Catastrophic . | . . . . . . . Database Lockouts . | . . . . . . . Manual . | . . . . . . . Terminals 8 | . 6 . . . 2 . Fabricators . | . . . . . . . Repair Stations . | . . . . . . . Recycling Units . | . . . . . . . Scanalyzers . | . . . . . . . Garrison Access . | . . . . . . . Terminal Hacks 5 | . 4 . . . 1 . Record 1 | . 1 . . . . . Open DSF 1 | . . . . . 1 . Alert Level 1 | . 1 . . . . . Transport Status 1 | . 1 . . . . . Hauler Manifests 1 | . 1 . . . . . Fabricator Hacks . | . . . . . . . Repair Station Hacks . | . . . . . . . Recycling Unit Hacks . | . . . . . . . Scanalyzer . | . . . . . . . Garrison Access Hacks . | . . . . . . . Unauthorized Hacks . | . . . . . . . Terminals . | . . . . . . . Fabricators . | . . . . . . . Repair Stations . | . . . . . . . Recycling Units . | . . . . . . . Scanalyzers . | . . . . . . . Garrison Access . | . . . . . . . Data Cores Recovered . | . . . . . . . Used . | . . . . . . . Hacking Detections 2 | . 2 . . . . . Full Trace Events 2 | . 2 . . . . . Feedback Events 1 | . 1 . . . . . Corruption 1 | . 1 . . . . . Feedback Blocked . | . . . . . . . Robot Schematics Acquired . | . . . . . . . Robots Built . | . . . . . . . Authchips . | . . . . . . . Time . | . . . . . . . Total Robot Build Rating . | . . . . . . . Part Schematics Acquired . | . . . . . . . Parts Built . | . . . . . . . Authchips . | . . . . . . . Time . | . . . . . . . Total Part Build Rating . | . . . . . . . Parts Repaired . | . . . . . . . Time . | . . . . . . . Parts Recycled . | . . . . . . . Recycled Matter . | . . . . . . . Retrieved Matter . | . . . . . . . Retrieved Components . | . . . . . . . Parts Scanalyzed . | . . . . . . . Part Schematics Acquired . | . . . . . . . Parts Damaged . | . . . . . . . Bothacking | -11 -10 -10 -10 -8 -6 -6 ------------ Run | Yrd Mat Min Sub Rec Fac DSF Used RIF Installer . | . . . . . . . Robots Hacked . | . . . . . . . Non-combat . | . . . . . . . Combat . | . . . . . . . Robot Hacks Applied . | . . . . . . . Relay Couplers Released . | . . . . . . . Fabnet Peak Effective % . | . . . . . . . Robots Rewired . | . . . . . . . Allies Hacked . | . . . . . . . Hacks Repelled . | . . . . . . . Allies | -11 -10 -10 -10 -8 -6 -6 -------- Run | Yrd Mat Min Sub Rec Fac DSF Total Allies . | . . . . . . . Largest Group . | . . . . . . . Highest-Rated Group . | . . . . . . . Highest-Rated Ally . | . . . . . . . Total Orders . | . . . . . . . Ally Attacks . | . . . . . . . Total Damage . | . . . . . . . Kills . | . . . . . . . Allies Corrupted . | . . . . . . . Allies Melted . | . . . . . . . Intel | -11 -10 -10 -10 -8 -6 -6 ------- Run | Yrd Mat Min Sub Rec Fac DSF Active Infowar (turns) 895 | 55 369 189 142 140 . . Terrain 895 | 55 369 189 142 140 . . Robot Analysis Total . | . . . . . . . Derelict Logs Recovered 2 | . . 2 . . . . Drone Launches . | . . . . . . . Drone Recoveries . | . . . . . . . Exploration | -11 -10 -10 -10 -8 -6 -6 ------------- Run | Yrd Mat Min Sub Rec Fac DSF Turns Passed 1612 | 142 369 189 142 605 26 139 Spaces Moved 777 | 57 187 119 65 302 12 35 Core 4 | 1 . . . 1 . 2 Treads 523 | 56 35 119 65 248 . . Legs 14 | . . . . . . 14 Wheels 236 | . 152 . . 53 12 19 Hover . | . . . . . . . Flight . | . . . . . . . Fastest Speed 50 | 50 90 160 160 150 165 165 Average Speed 164 | 158 109 160 160 185 165 326 Slowest Speed 1650 | 160 160 160 160 1650 165 1350 Overloaded Moves . | . . . . . . . Propulsion Burnouts . | . . . . . . . Robots Hopped . | . . . . . . . Potential Cave-ins . | . . . . . . . Cave-ins Triggered . | . . . . . . . Exploration Rate (%) 28 | 4 43 40 7 46 . 32 Regions Visited 6 Branch Regions 3 Pre-discovered Areas 1 | . . 1 . . . . Known Exits Taken 2 | . . . . 1 1 . Unknown Exits Taken 4 | 1 1 1 1 . . . Scrap Searched . | . . . . . . . Spaces Dug . | . . . . . . . Terrain Destroyed 99 | . . . . 86 . 13 Melee . | . . . . . . . Projectile . | . . . . . . . AOE 99 | . . . . 86 . 13 Terrain Rammed . | . . . . . . . Walls Destroyed . | . . . . . . . Machines Disabled . | . . . . . . . Actions | -11 -10 -10 -10 -8 -6 -6 --------- Run | Yrd Mat Min Sub Rec Fac DSF Total 965 | 85 267 118 81 332 18 64 Wait . | . . . . . . . Move 771 | 56 186 118 64 301 11 35 Hop . | . . . . . . . Pick Up 38 | 10 13 . 1 5 . 9 Fast Attach 3 | . . . . 3 . . Attach 33 | 7 7 . . 3 4 12 Detach 2 | . 1 . . . 1 . Swap 9 | . 3 . 1 2 2 1 Drop 18 | . 4 . 3 8 . 3 Fire 89 | 12 52 . 12 9 . 4 Melee . | . . . . . . . Ram 1 | . 1 . . . . . Kick . | . . . . . . . Crush 1 | . . . . 1 . . Escape Stasis . | . . . . . . . Rewire . | . . . . . . . Trap . | . . . . . . . Miscellaneous . | . . . . . . . Route ------- -11/Scrapyard -10/Materials (discovered 2 exits: [*Mat] / [*Min]) -10/Mines (discovered 2 exits: [*Mat] / [*Sub]) -10/Subcaves (discovered 2 exits: [*Mat] / [*Rec]) -8/Recycling -6/Factory -6/DSF History --------- Turn | Location | Event 24 | -11/Scrapyard | Discovered new exit (range 15) 143 | -11/Scrapyard | Entered Materials 277 | -10/Materials | Discovered new exit (range 8) 300 | -10/Materials | Build established: Mutant 388 | -10/Materials | Discovered new exit (range 8) 397 | -10/Materials | Lost 3 parts (1p2w) 512 | -10/Materials | Entered Mines 564 | -10/Mines | Learned location of Storage (-8) 567 | -10/Mines | Learned Materials stockpile data 621 | -10/Mines | Discovered new exit (range 7) 698 | -10/Mines | Discovered new exit (range 3) 701 | -10/Mines | Entered Subcaves 702 | -10/Subcaves | Approached by a straggling Scientist 734 | -10/Subcaves | Discovered new exit (range 16) 790 | -10/Subcaves | Discovered new exit (range 10) 797 | -10/Subcaves | Core integrity fell below 50% 843 | -10/Subcaves | Entered Recycling 844 | -8/Recycling | Met a Zionite searching for Scraptown 1383 | -8/Recycling | Discovered new exit (range 15) 1447 | -8/Recycling | Identified exit to Factory 1448 | -8/Recycling | Entered Factory 1448 | -6/Factory | Evolved 8 slots: Power x1, Propulsion x3, Utility x2, Weapon x2 1469 | -6/Factory | Identified exit to DSF 1474 | -6/Factory | Entered DSF 1543 | -6/DSF | Additional patrols routed to DSF 1602 | -6/DSF | Core integrity fell below 50% 1609 | -6/DSF | Core integrity fell below 20% 1613 | -6/DSF | Destroyed by H-61 Shepherd with Heavy Assault Cannon Last Messages --------------- 01562_ Lgt. Cannon destroyed. 01565_ Imp. VSS Leg destroyed. 01570_ Missile Launcher destroyed. 01576_ Nuclear Core destroyed. 01577_ Penetrated by Slug. 01577_ Mining Laser destroyed. 01577_ Shock Rifle destroyed. 01577_ Knocked back. 01582_ Lgt. Cannon destroyed. 01584_ Critical hit (Burn: +37). 01584_ X-67 Chaingunner knocked back. 01588_ Lgt. Cannon destroyed. 01588_ Critical hit (Burn: +37). 01590_ Imp. VSS Leg destroyed. 01594_ Acquired Imp. VSS Leg. 01595_ Acquired 24 matter. 01596_ X-67 Chaingunner destroyed. 01597_ Knocked back. 01602_ Penetrated by Slug. 01602_ Knocked back. Map ----- +----------------------------------------------------+ | ????????????????????????????????????????????????? | | ????????????????????????????????????????????????? | | ????????????????????????????????????????????????? | | ????????????????????????????????????????????????? | | ????????????????????????????????????????????????? | | ????????????????????????????????????????????????? | | ??????????????????????# ??????????????????????? | | ???????????????????!## ?????????????????????? | | ??????????????????? ?????????????????????? | | ???????????????? ? ?????????? |???????? | | ????????????????? ?????????? |???????? | | ??????????????????==# A#?????????? ???????? | | ???????????????????=# #?????????# ???????? | | ???????????????????# ##????????# ##??????? | | ??????????????????## % !!#????????! !???????? | | ??????????????????# !!?????????! !???????? | | ???????????????????# !??????????! !???????? | | ????????????????????#;% ###???????## ##??????? | | ????????????????????#!!H xg=#????????! !#??????? | | ????????????????????#!! g ==#????????! !#??????? | | ????????????????????#!! ==########?# #???????? | | ????????????????????##; ;##!!!# ### ^###?????? | | ????????????????????##; % ###!! # ##x ""###???? | | ????????????????????# %% """""???? | | ????????????????????# = %% ""#?????? | | ????????????????????#!!*@*= #!! # ##"""""#?????? | | ????????????????????#!!***= #########"""""#?????? | | ????????????????????##;#%#;##???????##"####?????? | | ?????????????????????# # ###?????????#"#????????? | | ?????????????????????### #???????????#""????????? | | ???????????????????????###????????????##????????? | | ????????????????????????????????????????????????? | | ????????????????????????????????????????????????? | | ????????????????????????????????????????????????? | | ????????????????????????????????????????????????? | | | | | | | | | | | | | | | | | | | | | | | | | | | | | | | +----------------------------------------------------+ Best States ------------- Heat Dissipation 37 Energy Generation 15 Energy Capacity 240 Matter Stores 300 Matter Capacity 300 Sight Range 16 Terrain Scan Range 16 Terrain Scan Density 10 Armor Coverage 800 Evasion (%) 42 Recoil Reduction 2 Item Schematics ----------------- None Robot Schematics ------------------ None Fabricated ------------ Nothing Repaired ---------- Nothing Alien Tech Used ----------------- None Achievements -------------- None Challenges ------------ None Game ------ Seed DrainedGravitonBox Manual? 0 Play Time 00:31:17 Cumulative 16.9 hours Start 2025.09.07 @ 17:17:26 End 2025.09.07 @ 17:51:57 Sessions 1 Manual Loads 0 Difficulty Rogue Special Mode None Game No. 26 Rogue 17 Adventurer 2 Explorer 7 Win Type - Total 0 Types 0/0/0/0/0/0/0/0/0/0 Lore% 6 Gallery% 18 Achievement% 19 Wizard Run 0 Options --------- Layout 1 ASCII 0 Keyboard 0 Movement Mouse Keybinds 0 Fullscreen 1 Font 24/Smallcaps Map View 50x40 Zoom Use 0% Tactical HUD 1 Map Filters NONE Filters NONE Steam 1 RUN: e45041f5-94e4-4139-b342-3b0313cf62ee